Cogmind - Beta 15 --- EXPLORER MODE // 2025.07.21 @ 16:33:42 Player: GermanMO Result: Destroyed by P-70 Sage with High-powered Shock Rifle Performance ------------- Evolutions (6) 3000 Regions Visited (12) 2400 Robots Destroyed (92) 460 Value Destroyed (3795) 3795 Prototype IDs (7) 140 Alien Tech Used (0) 0 Bonus (1334) 1334 TOTAL SCORE: 11129 Bonus ------- High Alert Combat Kills 76 Follower Combat Kills 419 Entered Garrisons 400 Used RIF Installer 500 Friendly Fire -61 Cogmind --------- Core Integrity 0/1150 Matter 99/300 Energy 100/100 System Corruption 5% Temperature Cool (48) Movement Core (50) Location -4/Factory Parts ------- > --- POWER (3) -------- (None) > --- PROPULSION (7) --- (None) > --- UTILITY (6) ------ (None) > --- WEAPON (4) ------- (None) > --- INVENTORY (5) ---- Phase Cannon Heavy Shock Bomb Launcher Peak State ------------ > --- POWER ------------ Light Antimatter Reactor Mini Fusion Reactor Improved Fusion Compressor > --- PROPULSION ------- Flexi-carbon Leg Thunder Leg Thunder Leg Thunder Leg Enhanced Flexi-carbon Leg Myomer Leg Advanced VSS Leg > --- UTILITY ---------- Enhanced Optical Array Improved Medium Armor Plating > --- WEAPON ----------- Plasma Rifle HERF Cannon Hardcell Cannon Powered Hammer > --- INVENTORY -------- Phase Cannon Heavy Shock Bomb Launcher [Rating: 99] Favorites ----------- Power Light Ion Engine Engine Light Ion Engine Power Core Light Nuclear Core Reactor Light Antimatter Reactor Propulsion Improved Flight Unit Leg Thunder Leg Flight Unit Improved Flight Unit Utility Improved Targeting Computer Device Improved Sensor Array Processor Improved Targeting Computer Hackware Authchip [R/Combat] Protection Hardened Light Armor Plating Weapon Great Maul Energy Gun Variable Charge Gun Energy Cannon HERF Cannon Ballistic Gun Improved Assault Rifle Ballistic Cannon Hardcell Cannon Launcher Improved Proton Missile Launcher Special Weapon Remote Datajack Impact Weapon Great Maul Slashing Weapon Axe Build | -11 -10 -9 -9 -9 -9 -7 -6 -6 -5 -5 -5 -4 ------- Run | Yrd Mat Mat Sto Gar Rec Fac Fac Ext Fac Gar Fac Fac Slots Evolved 13 | . 1 2 . . . 4 2 . 2 . . 2 Power 2 | . . . . . . 1 . . . . . 1 Propulsion 5 | . 1 1 . . . 1 1 . 1 . . . Utility 4 | . . 1 . . . 2 1 . . . . . Weapon 2 | . . . . . . . . . 1 . . 1 Parts Attached 96 | 1 6 6 11 3 3 8 3 15 5 . 20 15 Power 16 | . 1 . 1 2 . 1 1 2 1 . 3 4 Engine 6 | . 1 . 1 2 . . . . 1 . 1 . Core 7 | . . . . . . 1 1 2 . . 2 1 Reactor 3 | . . . . . . . . . . . . 3 Propulsion 37 | . 3 2 7 . . 3 1 5 4 . 5 7 Treads . | . . . . . . . . . . . . . Leg 7 | . . . . . . . . . . . . 7 Wheel . | . . . . . . . . . . . . . Hover . | . . . . . . . . . . . . . Flight 30 | . 3 2 7 . . 3 1 5 4 . 5 . Utility 27 | 1 1 2 3 . 3 3 1 5 . . 7 1 Device 14 | 1 . . 3 . . 2 1 3 . . 4 . Storage . | . . . . . . . . . . . . . Processor 5 | . . . . . 3 . . 2 . . . . Hackware 1 | . . . . . . 1 . . . . . . Protection 7 | . 1 2 . . . . . . . . 3 1 Artifact . | . . . . . . . . . . . . . Weapon 16 | . 1 2 . 1 . 1 . 3 . . 5 3 Energy Gun 3 | . . . . . . . . . . . 3 . Energy Cannon 2 | . . . . . . . . 1 . . . 1 Ballistic Gun 3 | . 1 1 . . . . . 1 . . . . Ballistic Cannon 1 | . . . . . . . . . . . . 1 Launcher 1 | . . . . . . . . . . . 1 . Special Weapon 1 | . . . . . . 1 . . . . . . Impact Weapon 4 | . . 1 . 1 . . . 1 . . . 1 Slashing Weapon 1 | . . . . . . . . . . . 1 . Piercing Weapon . | . . . . . . . . . . . . . Special Melee Weapon . | . . . . . . . . . . . . . Unidentified Prototypes 7 | . . 1 1 . . 1 . . . . 2 2 Corrupted Parts 1 | . . . . . . . . . . . 1 . System Corruption 3 | . . . . . . . . . . . 3 . Parts Lost 58 | . . 1 1 2 . 2 1 12 5 5 13 16 Power 11 | . . . 1 1 . 1 . 1 1 2 1 3 Propulsion 20 | . . 1 . . . . . 6 2 . 4 7 Utility 15 | . . . . 1 . 1 1 3 2 1 4 2 Weapon 12 | . . . . . . . . 2 . 2 4 4 Highest Loss Streak 16 | . . 1 1 1 . 1 1 7 3 5 5 16 To Critical Strikes . | . . . . . . . . . . . . . Average Backups 3 | 2 3 2 3 3 4 4 3 3 2 1 1 1 Power . | . . . . . . . . . . . . . Propulsion . | 1 1 1 1 1 1 1 . . . . . . Utility . | . . . 1 1 2 2 1 . . . . . Weapon 1 | . . . . . 1 1 2 2 1 1 1 1 Tool/Special . | . . . . . . . . . . . . . Unused Backups 6 | . 2 . . . . . . 2 . . 1 1 Power . | . . . . . . . . . . . . . Propulsion 2 | . 2 . . . . . . . . . . . Utility 3 | . . . . . . . . 2 . . 1 . Weapon 1 | . . . . . . . . . . . . 1 Tool/Special . | . . . . . . . . . . . . . Average Slot Usage (%) 71 | . 43 63 84 78 85 84 92 89 83 55 58 50 Engine 4 | . 6 10 5 9 10 3 . . 1 2 3 . Core 3 | . . . . . . 6 11 9 9 2 3 3 Leg 2 | . . . . . . . . . . . . 22 Flight 27 | . 20 34 39 40 40 34 36 33 29 24 18 . Device 9 | . 12 10 16 11 . 4 13 13 15 8 12 . Processor 7 | . . . . . 15 14 12 12 11 11 10 4 Protection 5 | . 1 2 13 7 10 6 4 6 4 . 3 2 Energy Gun 1 | . . . . . . . . . . . 3 3 Ballistic Gun 1 | . 2 2 2 4 . . . 4 5 2 . . Impact Weapon 4 | . . 3 7 6 10 7 6 5 5 2 . 3 Peak Build Rating 99 | 1 6 12 29 27 22 45 55 55 70 56 88 99 Average Rating 39 | . 3 6 20 21 21 36 50 48 61 51 65 61 On Entrance 25 | . 1 5 9 26 18 22 43 49 50 56 48 6 Naked Turns . | . . . . . . . . . . . . . Heaviest Build 66 | 1 6 12 22 23 12 24 27 28 30 23 45 66 Greatest Support 160 | 3 12 16 20 19 19 26 32 32 40 45 46 160 Greatest Overweight (x) 5 | . 1 . 1 1 . 2 1 1 1 . 5 3 Average Overweight (x) . | . . . . . . . . . . . . . Largest Inventory Capacity 5 | 5 5 5 5 5 5 5 5 5 5 5 5 5 Average Capacity 5 | 5 5 5 5 5 5 5 5 5 5 5 5 5 Most Carried 5 | 5 5 5 5 4 5 5 5 5 5 3 5 4 Average Carried 3 | 3 3 2 3 3 4 4 3 3 3 1 1 1 Final Capacity 5 | 5 5 5 5 5 5 5 5 5 5 5 5 5 Final Carried 5 | 5 3 4 4 4 5 4 4 2 3 1 2 2 Class Distribution -------------------- 43% | Hacker-Sprinter 39% | Hacker-Mutant 7% | Hacker-Scout 3% | Hacker-Tank 3% | Commander-Sprinter Dominant Class ---------------- Hacker-Mutant | -10/Materials Hacker-Mutant | -9/Materials Hacker-Sprinter | -9/Storage Hacker-Sprinter | -9/Garrison Hacker-Sprinter | -9/Recycling Hacker-Sprinter | -7/Factory Hacker-Sprinter | -6/Factory Hacker-Sprinter | -6/Extension Hacker-Scout | -5/Factory Hacker-Scout | -5/Garrison Hacker-Mutant | -5/Factory Hacker-Mutant | -4/Factory Resources | -11 -10 -9 -9 -9 -9 -7 -6 -6 -5 -5 -5 -4 ----------- Run | Yrd Mat Mat Sto Gar Rec Fac Fac Ext Fac Gar Fac Fac Matter Collected 2087 | 139 126 153 154 199 30 37 . 364 95 . 238 552 Remotely . | . . . . . . . . . . . . . Salvage Created 4391 | . 61 199 559 514 716 235 . 1021 143 . 232 711 Parts 152 | . 8 9 14 31 8 5 . 33 6 . 15 23 Haulers Intercepted 1 | . . 1 . . . . . . . . . . Recyclers Shooed 1 | . . . . . . . . 1 . . . . Parts Field Recycled . | . . . . . . . . . . . . . Retrieved Matter . | . . . . . . . . . . . . . Parts Self-Destructed . | . . . . . . . . . . . . . Prevented . | . . . . . . . . . . . . . Kills | -11 -10 -9 -9 -9 -9 -7 -6 -6 -5 -5 -5 -4 ------- Run | Yrd Mat Mat Sto Gar Rec Fac Fac Ext Fac Gar Fac Fac Combat Hostiles Destroyed 87 | . 4 6 13 17 4 4 . 17 5 . 4 13 Melee 20 | . . 5 4 4 1 1 . 4 1 . . . Guns 29 | . 4 . 4 9 . . . 4 4 . 3 1 Cannons 11 | . . . 1 . . . . . . . . 10 AOE 1 | . . . . . . . . . . . 1 . Classes Destroyed 9 | . 1 4 . 2 . . . 2 . . . . Builder 4 | . . 1 . . 1 1 . 1 . . . . Hauler 1 | . . 1 . . . . . . . . . . Swarmer 26 | . 4 4 2 7 . . . 1 4 . . 4 Grunt 33 | . . 1 8 6 . 2 . 6 . . 1 9 Duelist 4 | . . . . . . . . 3 . . 1 . Sentry 17 | . . 1 3 2 4 2 . 5 . . . . Hunter 1 | . . . . . . . . 1 . . . . Programmer 4 | . . . . . . . . 1 1 . 2 . Savage 1 | . . . . 1 . . . . . . . . Butcher 1 | . . . . 1 . . . . . . . . Best Kill Streak 9 | . 2 4 5 9 3 2 . 3 4 . 2 7 Combat Bots Only 9 | . 2 4 5 9 3 2 . 3 4 . 2 7 Max Kills in Single Turn 1 | . 1 1 1 1 1 1 . 1 1 . 1 1 Gunslinging . | . . . . . . . . . . . . . Exploded 1 | . . . . . . . . . . . 1 . Melee 1 | . . 1 1 1 1 1 . 1 1 . . . Uniques/NPCs Destroyed . | . . . . . . . . . . . . . Combat | -11 -10 -9 -9 -9 -9 -7 -6 -6 -5 -5 -5 -4 -------- Run | Yrd Mat Mat Sto Gar Rec Fac Fac Ext Fac Gar Fac Fac Hostile Shots Fired 1050 | . 30 49 35 92 6 56 54 240 84 27 212 165 Missed 419 | . 12 19 12 28 3 38 27 111 41 9 80 39 Hits 631 | . 18 30 23 64 3 18 27 129 43 18 132 126 Melee 4 | . . . . . . . . 3 . . 1 . Projectile 627 | . 18 30 23 64 3 18 27 126 43 18 131 126 AOE 7 | . . . . . . . 2 . 1 . 3 1 Critical Strikes 26 | . . . 1 3 . 1 . 1 4 2 7 7 Actively Blocked 2 | . . . . . . . . . 2 . . . Damage Taken 7336 | . 84 159 236 379 27 113 136 803 568 223 1924 2684 Core 2516 | . 26 50 61 60 9 21 21 136 113 11 857 1151 Absorbed by Shields 196 | . . . . . . . . 112 . . 84 . Redirected to Shielding 51 | . . 1 10 . . . 1 18 21 . . . Ignored by Resistances 4129 | . 63 112 140 256 16 74 210 583 332 136 1083 1124 Core Remaining (%) 70 | 100 89 . . . 55 97 . 81 . . 1 . Volleys Fired 165 | . 13 . 10 31 . 1 1 38 20 4 19 28 Largest 3 | . 1 . 1 1 . 1 1 1 1 1 2 3 Hottest 225 | . 20 . 23 23 . 5 5 85 23 23 225 218 Shots Fired 197 | . 11 . 10 31 . 1 1 38 20 4 23 58 Gun 151 | . 11 . 10 31 . . . 35 20 4 19 21 Cannon 43 | . . . . . . . . 3 . . 3 37 Launcher 1 | . . . . . . . . . . . 1 . Special 2 | . . . . . . 1 1 . . . . . Kinetic 131 | . 11 . 10 31 . . . 35 20 4 . 20 Thermal 39 | . . . . . . . . 3 . . 15 21 Explosive . | . . . . . . . . . . . . . Electromagnetic 25 | . . . . . . . . . . . 8 17 Robot Hit Streak 47 | . 9 . 10 29 . . 30 47 17 10 32 40 Robot Miss Streak 3 | . 1 . . 1 . . . 3 2 . . 1 Penetration Max 1 | . . . . . . . . 1 . . . . Secondary Targets . | . . . . . . . . . . . . . Shots Hit Robots 303 | . 10 11 37 45 22 9 8 65 18 7 23 48 Core Hits 89 | . 4 3 11 12 3 1 . 18 8 1 7 21 Critical Kills 8 | . . 1 . . 1 . . 6 . . . . Critical Parts Destroyed 39 | . . 1 3 8 4 5 1 16 1 . . . Critical Strikes 53 | . . 2 3 8 5 5 1 23 1 . . 5 Burn 4 | . . . . . . . . . . . . 4 Destroy 11 | . . . . . . . . 11 . . . . Blast 1 | . . . . . . . . . . . . 1 Smash 37 | . . 2 3 8 5 5 1 12 1 . . . Melee Attacks 259 | . . 37 42 20 22 22 26 47 32 3 5 3 Impact 254 | . . 37 42 20 22 22 26 47 32 3 . 3 Slashing 5 | . . . . . . . . . . . 5 . Piercing . | . . . . . . . . . . . . . Sneak Attacks 15 | . . 2 4 2 5 1 . 1 . . . . Combat Hostiles 4 | . . . 1 . 3 . . . . . . . Follow-up Attacks . | . . . . . . . . . . . . . Damage Inflicted 10453 | . 127 498 1634 1265 1708 446 258 1694 390 214 609 1610 Guns 2117 | . 127 . 133 449 . . . 243 249 75 513 328 Cannons 1332 | . . . . . . . . 94 . . 60 1178 Explosions 34 | . . . 28 . . . . . . . 6 . Melee 6970 | . . 498 1473 816 1708 446 258 1357 141 139 30 104 Ramming . | . . . . . . . . . . . . . Kinetic 1927 | . 127 . 133 449 . . . 243 249 75 . 651 Thermal 962 | . . . . . . . . 94 . . 540 328 Explosive 28 | . . . 28 . . . . . . . . . Electromagnetic 566 | . . . . . . . . . . . 39 527 Impact 6940 | . . 498 1473 816 1708 446 258 1357 141 139 . 104 Slashing 30 | . . . . . . . . . . . 30 . Piercing . | . . . . . . . . . . . . . Highest Corruption 19 | . 2 . . . . . . 1 4 5 19 5 Average Corruption 4 | . 2 . . . . . . 1 2 4 7 2 Corruption Purged . | . . . . . . . . . . . . . Corruption Blocked . | . . . . . . . . . . . . . Effects 40 | . 3 . . . . . . 2 2 2 31 . Message Errors 6 | . . . . . . . . . 1 . 5 . Matter Fused 4 | . 1 . . . . . . . . 1 2 . Heat Flow Errors 7 | . . . . . . . . . . 1 6 . Energy Discharges 7 | . . . . . . . . 1 . . 6 . Parts Rejected 2 | . . . . . . . . . . . 2 . Data Loss (minor) 3 | . . . . . . . . 1 . . 2 . Data Loss (major) 3 | . . . . . . . . . . . 3 . Misfires 1 | . . . . . . . . . . . 1 . Alerts 2 | . . . . . . . . . 1 . 1 . Misdirections 3 | . . . . . . . . . . . 3 . Weapon Failures 2 | . 2 . . . . . . . . . . . Overload Shots 8 | . . . . . . . . . . . 8 . Overflow Damage 2629 | . . 217 465 522 581 263 46 478 50 . . 7 Projectiles 20 | . . . . . . . . 20 . . . . Explosions . | . . . . . . . . . . . . . Melee 2609 | . . 217 465 522 581 263 46 458 50 . . 7 Knockbacks 24 | . . . 4 . 2 . . 9 . . . 9 Impact 13 | . . . 4 . 1 . . 7 . . . 1 Kinetic 8 | . . . . . . . . . . . . 8 Secondary 3 | . . . . . 1 . . 2 . . . . Self-Inflicted Damage 63 | . . . 47 . . . . . . . 16 . Shots 2 | . . . 1 . . . . . . . 1 . Rammed . | . . . . . . . . . . . . . Targets Rammed . | . . . . . . . . . . . . . Kicked . | . . . . . . . . . . . . . Crushed . | . . . . . . . . . . . . . Highest Temperature 796 | . . 2 12 32 6 221 194 336 167 104 674 796 Average Temperature 153 | . . 1 3 7 2 59 75 92 63 42 196 361 Received Heat Transfer 1666 | . . 33 156 234 18 102 54 408 39 33 249 340 Effects 108 | . . . . . . . . 1 . . 27 80 Shutdowns 37 | . . . . . . . . 1 . . 5 31 Energy Bleed 10 | . . . . . . . . . . . 2 8 Interference 14 | . . . . . . . . . . . 4 10 Matter Decay 12 | . . . . . . . . . . . 5 7 Short Circuit 9 | . . . . . . . . . . . 4 5 Damage (minor) 2 | . . . . . . . . . . . . 2 Damage (major) 18 | . . . . . . . . . . . 6 12 Damage (core) 6 | . . . . . . . . . . . 1 5 Siege Activations . | . . . . . . . . . . . . . Martial Activations . | . . . . . . . . . . . . . Shielding Activations . | . . . . . . . . . . . . . Robots Disrupted . | . . . . . . . . . . . . . Combat Hostiles . | . . . . . . . . . . . . . Robots Corrupted 31 | . . 3 4 4 6 3 . 9 . . . 2 Combat Hostiles 23 | . . 1 3 2 3 3 . 9 . . . 2 Parts Fried 44 | . . 9 5 5 10 5 . 7 . . . 3 Impact Corruptions 79 | . . 7 18 16 15 6 2 12 2 . . 1 Robots Melted . | . . . . . . . . . . . . . Combat Hostiles . | . . . . . . . . . . . . . Parts Melted 2 | . . . . . . . . 1 . . . 1 Heat Transferred 1883 | . . . . . . . . 111 . . 622 1150 Parts Sabotaged . | . . . . . . . . . . . . . Parts Stolen . | . . . . . . . . . . . . . Parts Stripped . | . . . . . . . . . . . . . Power Chain Reactions . | . . . . . . . . . . . . . Alert | -11 -10 -9 -9 -9 -9 -7 -6 -6 -5 -5 -5 -4 ------- Run | Yrd Mat Mat Sto Gar Rec Fac Fac Ext Fac Gar Fac Fac Maximum Alert Level 2 | . . . 1 2 1 . . . . . . . Low Security (%) 90 | 100 100 100 80 15 69 100 100 100 100 100 100 100 Level 1 4 | . . . 19 12 30 . . . . . . . Level 2 5 | . . . . 72 . . . . . . . . Level 3 . | . . . . . . . . . . . . . Level 4 . | . . . . . . . . . . . . . Level 5 . | . . . . . . . . . . . . . High Security . | . . . . . . . . . . . . . Max Security . | . . . . . . . . . . . . . Peak Influence 626 | . 65 90 296 626 243 50 19 136 116 169 65 158 Initial 203 | . . 6 3 129 203 24 . 5 25 54 65 5 Average 73 | . 23 15 95 455 173 10 2 62 24 62 8 48 Influence Increases 3523 | . 130 185 518 557 120 213 68 595 308 165 245 419 Destroy 0b10 Robot/C 2040 | . 80 120 340 460 80 80 . 440 100 . 80 260 Destroy 0b10 Robot/NC 75 | . . 10 10 . 40 5 . 10 . . . . Destroy Leader 304 | . 20 22 70 20 . 30 . 62 20 . 20 40 Allied During Kill 56 | . . . 22 13 . . . 21 . . . . Successful Hack 24 | . . . 4 . . 10 . 10 . . . . Disable Machine 40 | . . . 8 4 . . 8 12 . . 4 4 Anti-Garrison Action 50 | . . . . 50 . . . . . . . . Destroy Structure 124 | . . 3 19 10 . 13 15 10 38 . 6 10 Partial Spotted 180 | . . . 15 . . 15 15 15 15 . 105 . Lose Combat Pursuer 630 | . 30 30 30 . . 60 30 15 135 165 30 105 Influence Decreases 3523 | . 110 194 266 194 663 295 54 540 277 97 399 434 Entered New Map 855 | . . 14 8 134 423 59 1 10 45 47 104 10 Time Decay 2096 | . 110 170 208 . 240 196 53 389 178 . 275 277 Lost Part 445 | . . 10 10 20 . 20 . 118 50 50 20 147 Lost Ally 127 | . . . 40 40 . 20 . 23 4 . . . Squads Dispatched 15 | . . . 2 . . 2 . 1 3 . 4 3 Investigation 3 | . . . 2 . . . . . . . 1 . Extermination 6 | . . . . . . 1 . . 2 . 2 1 Reinforcement 6 | . . . . . . 1 . 1 1 . 1 2 Assault . | . . . . . . . . . . . . . Garrison . | . . . . . . . . . . . . . Intercept . | . . . . . . . . . . . . . Searches Triggered . | . . . . . . . . . . . . . Construction Impeded . | . . . . . . . . . . . . . Haulers Reinforced 1 | . . . . . . . . . . . 1 . Active Scanning Responses . | . . . . . . . . . . . . . Cargo Convoy Interrupts . | . . . . . . . . . . . . . Stealth | -11 -10 -9 -9 -9 -9 -7 -6 -6 -5 -5 -5 -4 --------- Run | Yrd Mat Mat Sto Gar Rec Fac Fac Ext Fac Gar Fac Fac Distress Signals 4 | . 1 1 . . . 1 . . . . 1 . Communications Jammed 3 | . . . . . . . . 3 . . . . Distress Signals 3 | . . . . . . . . 3 . . . . Times Spotted 185 | . 9 12 13 22 3 18 2 24 25 12 20 25 Peak Tracking Total 14 | . 4 5 3 6 1 6 1 5 11 14 13 8 Tactical Retreats 20 | . 1 2 1 . . 3 2 1 2 1 3 4 Traps | -11 -10 -9 -9 -9 -9 -7 -6 -6 -5 -5 -5 -4 ------- Run | Yrd Mat Mat Sto Gar Rec Fac Fac Ext Fac Gar Fac Fac Traps Triggered 12 | . 2 1 . 4 . 1 . . 1 2 1 . Indirectly . | . . . . . . . . . . . . . Trap Hack Attempts . | . . . . . . . . . . . . . Triggered . | . . . . . . . . . . . . . Disarmed . | . . . . . . . . . . . . . Reprogrammed . | . . . . . . . . . . . . . Reused . | . . . . . . . . . . . . . Traps Extracted . | . . . . . . . . . . . . . Installed . | . . . . . . . . . . . . . Triggered . | . . . . . . . . . . . . . Machines | -11 -10 -9 -9 -9 -9 -7 -6 -6 -5 -5 -5 -4 ---------- Run | Yrd Mat Mat Sto Gar Rec Fac Fac Ext Fac Gar Fac Fac Machines Disabled 12 | . . . 2 2 . . 2 4 . . 1 1 Max in Single Turn 1 | . . . 1 1 . . 1 1 . . 1 1 Garrison Relay 1 | . . . . 1 . . . . . . . . Machines Repaired . | . . . . . . . . . . . . . Machines Dismantled . | . . . . . . . . . . . . . Machines Sabotaged . | . . . . . . . . . . . . . Overloaded Fab Kills . | . . . . . . . . . . . . . Hacking | -11 -10 -9 -9 -9 -9 -7 -6 -6 -5 -5 -5 -4 --------- Run | Yrd Mat Mat Sto Gar Rec Fac Fac Ext Fac Gar Fac Fac Machines Accessed 10 | . . . 4 1 . 1 . 3 1 . . . Terminals 7 | . . . 3 1 . . . 3 . . . . Fabricators 1 | . . . . . . 1 . . . . . . Repair Stations . | . . . . . . . . . . . . . Recycling Units . | . . . . . . . . . . . . . Scanalyzers . | . . . . . . . . . . . . . Garrison Access 2 | . . . 1 . . . . . 1 . . . Total Hacks 19 | . . . 9 2 . 1 . 5 2 . . . Successful 11 | . . . 4 1 . 1 . 3 2 . . . Failed 8 | . . . 5 1 . . . 2 . . . . Catastrophic . | . . . . . . . . . . . . . Database Lockouts . | . . . . . . . . . . . . . Manual . | . . . . . . . . . . . . . Terminals 14 | . . . 7 2 . . . 5 . . . . Fabricators 1 | . . . . . . 1 . . . . . . Repair Stations . | . . . . . . . . . . . . . Recycling Units . | . . . . . . . . . . . . . Scanalyzers . | . . . . . . . . . . . . . Garrison Access 4 | . . . 2 . . . . . 2 . . . Terminal Hacks 7 | . . . 3 1 . . . 3 . . . . Record 1 | . . . 1 . . . . . . . . . Part Schematic 1 | . . . 1 . . . . . . . . . Open Door 5 | . . . 1 1 . . . 3 . . . . Fabricator Hacks 1 | . . . . . . 1 . . . . . . Build 1 | . . . . . . 1 . . . . . . Repair Station Hacks . | . . . . . . . . . . . . . Recycling Unit Hacks . | . . . . . . . . . . . . . Scanalyzer . | . . . . . . . . . . . . . Garrison Access Hacks 3 | . . . 1 . . . . . 2 . . . Unlock Access 2 | . . . 1 . . . . . 1 . . . Coupler Status 1 | . . . . . . . . . 1 . . . Unauthorized Hacks . | . . . . . . . . . . . . . Terminals . | . . . . . . . . . . . . . Fabricators . | . . . . . . . . . . . . . Repair Stations . | . . . . . . . . . . . . . Recycling Units . | . . . . . . . . . . . . . Scanalyzers . | . . . . . . . . . . . . . Garrison Access . | . . . . . . . . . . . . . Data Cores Recovered . | . . . . . . . . . . . . . Used . | . . . . . . . . . . . . . Hacking Detections 4 | . . . 2 1 . 1 . . . . . . Full Trace Events 2 | . . . 2 . . . . . . . . . Feedback Events . | . . . . . . . . . . . . . Feedback Blocked . | . . . . . . . . . . . . . Robot Schematics Acquired . | . . . . . . . . . . . . . Robots Built . | . . . . . . . . . . . . . Authchips . | . . . . . . . . . . . . . Time . | . . . . . . . . . . . . . Total Robot Build Rating . | . . . . . . . . . . . . . Part Schematics Acquired 1 | . . . 1 . . . . . . . . . Parts Built 2 | . . . . . . 2 . . . . . . Authchips . | . . . . . . . . . . . . . Time 53 | . . . . . . 53 . . . . . . Total Part Build Rating 12 | . . . . . . 12 . . . . . . Parts Repaired . | . . . . . . . . . . . . . Time . | . . . . . . . . . . . . . Parts Recycled . | . . . . . . . . . . . . . Recycled Matter . | . . . . . . . . . . . . . Retrieved Matter . | . . . . . . . . . . . . . Retrieved Components . | . . . . . . . . . . . . . Parts Scanalyzed . | . . . . . . . . . . . . . Part Schematics Acquired . | . . . . . . . . . . . . . Parts Damaged . | . . . . . . . . . . . . . Bothacking | -11 -10 -9 -9 -9 -9 -7 -6 -6 -5 -5 -5 -4 ------------ Run | Yrd Mat Mat Sto Gar Rec Fac Fac Ext Fac Gar Fac Fac Used RIF Installer 1 | . . . . 1 . . . . . . . . Robots Hacked . | . . . . . . . . . . . . . Non-combat . | . . . . . . . . . . . . . Combat . | . . . . . . . . . . . . . Robot Hacks Applied . | . . . . . . . . . . . . . Relay Couplers Released 3 | . . . . 3 . . . . . . . . Machine Destruction 3 | . . . . 3 . . . . . . . . Fabnet Peak Effective % . | . . . . . . . . . . . . . Robots Rewired . | . . . . . . . . . . . . . Allies Hacked 1 | . . . . . . . . . 1 . . . Hacks Repelled . | . . . . . . . . . . . . . Allies | -11 -10 -9 -9 -9 -9 -7 -6 -6 -5 -5 -5 -4 -------- Run | Yrd Mat Mat Sto Gar Rec Fac Fac Ext Fac Gar Fac Fac Total Allies 13 | . . . 8 . . . . 5 . . . . Largest Group 8 | . . . 8 5 2 2 . 5 1 . . . Highest-Rated Group 285 | . . . 72 45 21 21 . 285 31 . . . Highest-Rated Ally 159 | . . . 16 13 13 13 . 159 31 . . . Total Orders . | . . . . . . . . . . . . . Ally Attacks 143 | . . . 22 41 . 6 . 71 3 . . . Total Damage 2003 | . . . 186 415 . 45 . 1337 20 . . . Kills 17 | . . . 4 7 . . . 6 . . . . Allies Corrupted . | . . . . . . . . . . . . . Allies Melted . | . . . . . . . . . . . . . Intel | -11 -10 -9 -9 -9 -9 -7 -6 -6 -5 -5 -5 -4 ------- Run | Yrd Mat Mat Sto Gar Rec Fac Fac Ext Fac Gar Fac Fac Active Infowar (turns) 4521 | 22 209 712 341 92 294 566 199 546 402 71 812 255 Optics 2960 | . . . . . 294 566 199 434 402 71 739 255 Sensors 1895 | . . . . . . . 169 546 402 71 707 . IFF 559 | . . . . . . . . 124 402 33 . . Structural 1376 | 22 209 712 341 92 . . . . . . . . Jamming 727 | . . . . . . . . 158 . . 569 . ECM 401 | . . . . . . . . . . . 401 . Robot Analysis Total . | . . . . . . . . . . . . . Derelict Logs Recovered . | . . . . . . . . . . . . . Drone Launches 16 | . . . 6 5 . . . . 2 . 3 . Drone Recoveries 8 | . . . 3 2 . . . . 2 . 1 . Exploration | -11 -10 -9 -9 -9 -9 -7 -6 -6 -5 -5 -5 -4 ------------- Run | Yrd Mat Mat Sto Gar Rec Fac Fac Ext Fac Gar Fac Fac Turns Passed 5375 | 25 209 712 341 440 321 566 199 546 402 71 957 586 Spaces Moved 6484 | 36 351 400 306 562 650 607 400 774 677 120 1244 357 Core 434 | 36 126 . . . . . . . . . 162 110 Treads . | . . . . . . . . . . . . . Legs 247 | . . . . . . . . . . . . 247 Wheels . | . . . . . . . . . . . . . Hover . | . . . . . . . . . . . . . Flight 5803 | . 225 400 306 562 650 607 400 774 677 120 1082 . Fastest Speed 21 | 50 34 31 29 29 29 26 23 21 21 24 24 90 Average Speed 41 | 50 40 32 35 33 29 40 24 25 36 32 49 128 Slowest Speed 300 | 50 100 34 112 101 29 177 103 100 99 40 300 200 Overloaded Moves 196 | . . . . . . . . 30 . 28 138 . Propulsion Burnouts 1 | . . . . . . . . . . . 1 . Robots Hopped 9 | . . . 1 1 4 2 . . 1 . . . Potential Cave-ins 23 | . . . . . . . 7 7 9 . . . Cave-ins Triggered . | . . . . . . . . . . . . . Exploration Rate (%) 36 | 3 42 23 57 66 95 17 9 70 18 32 27 14 Regions Visited 12 Branch Regions 3 Pre-discovered Areas . | . . . . . . . . . . . . . Known Exits Taken 10 | 1 1 1 1 . 1 1 1 1 1 . 1 . Unknown Exits Taken . | . . . . . . . . . . . . . Scrap Searched . | . . . . . . . . . . . . . Spaces Dug 77 | . . 4 . . . 13 15 12 28 . 4 1 Terrain Destroyed 97 | . . 4 18 . . 13 15 12 28 . 4 3 Melee 77 | . . 4 . . . 13 15 12 28 . 4 1 Projectile 2 | . . . . . . . . . . . . 2 AOE 18 | . . . 18 . . . . . . . . . Terrain Rammed . | . . . . . . . . . . . . . Walls Destroyed . | . . . . . . . . . . . . . Machines Disabled . | . . . . . . . . . . . . . Actions | -11 -10 -9 -9 -9 -9 -7 -6 -6 -5 -5 -5 -4 --------- Run | Yrd Mat Mat Sto Gar Rec Fac Fac Ext Fac Gar Fac Fac Total 8531 | 42 406 920 461 742 732 879 463 1014 745 141 1558 428 Wait 1277 | . 27 462 59 59 60 228 26 118 5 . 226 7 Move 6456 | 35 350 399 304 559 641 602 399 773 675 119 1243 357 Hop 9 | . . . 1 1 4 2 . . 1 . . . Pick Up 98 | 6 4 6 12 4 1 3 5 15 4 . 22 16 Fast Attach 7 | . . . . . 3 4 . . . . . . Attach 104 | 1 7 9 14 4 . 3 5 15 5 1 24 16 Detach 20 | . 3 4 6 1 . . . 1 1 . 4 . Swap 12 | . . 1 4 2 . 1 . 2 . . 2 . Drop 43 | . 2 2 9 4 1 3 1 5 2 . 13 1 Fire 165 | . 13 . 10 31 . 1 1 38 20 4 19 28 Melee 259 | . . 37 42 20 22 22 26 47 32 3 5 3 Ram . | . . . . . . . . . . . . . Kick . | . . . . . . . . . . . . . Crush . | . . . . . . . . . . . . . Escape Stasis 81 | . . . . 57 . 10 . . . 14 . . Rewire . | . . . . . . . . . . . . . Trap . | . . . . . . . . . . . . . Miscellaneous . | . . . . . . . . . . . . . Route ------- -11/Scrapyard -10/Materials -9/Materials -9/Storage -9/Garrison (discovered 2 exits: *Rec x2) -9/Recycling -7/Factory -6/Factory (discovered 2 exits: *Low / *Ext) -6/Extension (discovered 2 exits: *Fac / *Cet) -5/Factory (discovered 2 exits: *Upp / Gar) -5/Garrison -5/Factory -4/Factory History --------- Turn | Location | Event 12 | -11/Scrapyard | Identified exit to Materials 12 | -11/Scrapyard | Discovered exit to Materials (range 16) 26 | -11/Scrapyard | Entered Materials 26 | -10/Materials | Evolved 1 slot: Propulsion x1 229 | -10/Materials | Identified exit to Materials 229 | -10/Materials | Discovered exit to Materials (range 13) 235 | -10/Materials | Entered another Materials area 235 | -9/Materials | Evolved 2 slots: Propulsion x1, Utility x1 318 | -9/Materials | Build established: Hacker-Mutant 783 | -9/Materials | Identified exit to Storage 783 | -9/Materials | Discovered exit to Storage (range 9) 908 | -9/Materials | Build established: Hacker-Sprinter 947 | -9/Materials | Entered Storage 1185 | -9/Storage | Assisted by bots powering up and referring to "LRC-V3" 1264 | -9/Storage | Identified exit to Garrison 1288 | -9/Storage | Entered Garrison 1288 | -9/Garrison | Accompanied by 6 allies 1344 | -9/Garrison | Triggered checkpoint 1347 | -9/Garrison | Triggered checkpoint 1352 | -9/Garrison | Triggered checkpoint 1384 | -9/Garrison | Triggered checkpoint 1421 | -9/Garrison | Lost 3 allies 1442 | -9/Garrison | Destroyed 9 combat bots 1464 | -9/Garrison | Identified exit to Recycling 1464 | -9/Garrison | Discovered exit to Recycling (range 12) 1474 | -9/Garrison | Triggered checkpoint 1554 | -9/Garrison | Triggered checkpoint 1582 | -9/Garrison | Garrison Relay disabled 1595 | -9/Garrison | Discovered exit to Recycling (range 12) 1610 | -9/Garrison | Triggered checkpoint 1671 | -9/Garrison | Installed Relay Interface Framework 1728 | -9/Garrison | Entered Recycling 1728 | -9/Recycling | Accompanied by 2 allies 1908 | -9/Recycling | Identified exit to Factory 1908 | -9/Recycling | Discovered exit to Factory (range 14) 2049 | -9/Recycling | Entered Factory 2049 | -7/Factory | Accompanied by 2 allies 2049 | -7/Factory | Evolved 4 slots: Power x1, Propulsion x1, Utility x2 2369 | -7/Factory | Fabricated Imp. Shock Absorption System (x2) 2590 | -7/Factory | Identified exit to Factory 2590 | -7/Factory | Discovered exit to Factory (range 10) 2615 | -7/Factory | Entered another Factory area 2615 | -6/Factory | Evolved 2 slots: Propulsion x1, Utility x1 2636 | -6/Factory | Identified exit to Lower Caves 2636 | -6/Factory | Discovered exit to Lower Caves (range 11) 2809 | -6/Factory | Identified exit to Extension 2809 | -6/Factory | Discovered exit to Extension (range 18) 2814 | -6/Factory | Entered Extension 2854 | -6/Extension | Disrupted transfer network 2949 | -6/Extension | Spotted B-75 Beast 3031 | -6/Extension | Rescued A7 3041 | -6/Extension | Rescued a captive Derelict 3042 | -6/Extension | Rescued a captive Derelict 3103 | -6/Extension | Rescued a captive Derelict 3104 | -6/Extension | Rescued a captive Derelict 3142 | -6/Extension | Spotted B-75 Beast 3164 | -6/Extension | Allies destroyed B-75 Beast 3187 | -6/Extension | Allies destroyed B-75 Beast 3216 | -6/Extension | Lost 3 allies 3225 | -6/Extension | Lost 7 parts (4n2u1w) 3302 | -6/Extension | Identified exit to Cetus 3302 | -6/Extension | Discovered exit to Cetus (range 21) 3302 | -6/Extension | Identified exit to Factory 3302 | -6/Extension | Discovered exit to Factory (range 21) 3318 | -6/Extension | Lost 3 parts (1n1u1w) 3360 | -6/Extension | Entered Factory 3360 | -5/Factory | Accompanied by 2 allies (A7) 3360 | -5/Factory | Evolved 2 slots: Propulsion x1, Weapon x1 3740 | -5/Factory | Lost 3 parts (2n1u) 3748 | -5/Factory | Identified exit to Upper Caves 3748 | -5/Factory | Discovered exit to Upper Caves (range 21) 3757 | -5/Factory | Build established: Hacker-Scout 3762 | -5/Factory | Identified exit to Garrison 3762 | -5/Factory | Entered Garrison 3820 | -5/Garrison | Triggered checkpoint 3828 | -5/Garrison | Lost 5 parts (2p1u2w) 3828 | -5/Garrison | Identified exit to Factory 3828 | -5/Garrison | Discovered exit to Factory (range 13) 3833 | -5/Garrison | Entered Factory 4574 | -5/Factory | System corruption reached 10% 4604 | -5/Factory | Lost 4 parts (2n2u) 4642 | -5/Factory | Core integrity fell below 50% 4672 | -5/Factory | Lost 5 parts (1n1u3w) 4737 | -5/Factory | Build established: Hacker-Mutant 4762 | -5/Factory | Lost 3 parts (1p1u1w) 4763 | -5/Factory | Core integrity fell below 20% 4779 | -5/Factory | Identified exit to Factory 4779 | -5/Factory | Discovered exit to Factory (range 13) 4790 | -5/Factory | Entered another Factory area 4790 | -4/Factory | Evolved 2 slots: Power x1, Weapon x1 5143 | -4/Factory | Destroyed 7 combat bots 5256 | -4/Factory | Core integrity fell below 50% 5351 | -4/Factory | Core integrity fell below 20% 5376 | -4/Factory | Destroyed by P-70 Sage with High-powered Shock Rifle Last Messages --------------- W-44 Eye knocked back. Repair Station disabled. Backup Power I tumbles out of repair station. Backup Propulsion I tumbles out of repair station. Adv. VSS Leg destroyed. O-24 Administrator: "IFF HANDSHAKE FAILED. SECURING TERMINAL." ALERT: Hostiles spotted, dispatching reinforcements to Terminal F011. Enh. Optical Array destroyed. Broken Thunder Leg destroyed. Powered Hammer destroyed. Power Conduit explodes. Broken Enh. Flexi-carbon Leg destroyed. Recycling Unit disabled. Quantum Rifle tumbles out of recycling unit. P-70 Sage destroyed. Power Conduit explodes. Imp. Fusion Compressor destroyed. Map ----- +----------------------------------------------------+ | / # =* "# ################ # "" | | # #! ""# #??????? ?# # "" | | # / # #??????? ?# # "" | | # # + #???????"" """ # # "" | | ###### """"""""" # #???????"" """ # # "" | | ?????# # #???????"" """ + + "" | | ?????# """"""""" # #??? # # | | ?????# # #?? """ """ # # | | ?????# """"""""" %# #????? """ """?# ##### | | ?????# # #??????""" """?# | | ?????############## #??????? ??# | | ??????????????????# g #????????? ??# | | ??????????????????# #????????? ???# | | ??????????????????# #????????###???# | | ??????????????????#g ######?????????########### | | ???????????###+#### # ""??????????????????? | | ???????????# ^ # o ???????????????????? | | ???????????# + ???????????????????? | | ???????????# # """????????????????????? | | ???????????# ; ????????????????????? | | ???????????# p ; ;##???????????????????? | | ???????????########; ##??????????????????? | | ?????????????# ;#??????????????????? | | ?????????????# #??????????????????? | | ?????????????# #??????????????????? | | ?????????????# @ #??????????????????? | | ?????????????# #??????????????????? | | ?????????????# #??????????????????? | | ?????????????# #??????????????????? | | ?????????????# #??????????????????? | | ?????????????# ;#??????????????????? | | ?????????????# ;#??????????????????? | | ?????????????#######;; ;;##??????????????????? | | | | | | | | | | | | | | | | | | | | | | | | | | | | | | | | | | | +----------------------------------------------------+ Best States ------------- Heat Dissipation 43 Energy Generation 67 Energy Capacity 750 Matter Stores 300 Matter Capacity 300 Sight Range 22 Robot Scan Range 15 Terrain Scan Density 10 ECM Strength 2 Jamming Range 14 Armor Coverage 225 Resistance: KI 35 Resistance: TH 35 Resistance: EX 85 Resistance: EM 35 Resistance: I 35 Resistance: S 35 Resistance: P 35 Core Shielding 20 Melee Speed Boost 20 Evasion (%) 70 Targeting Accuracy 14 Offensive Hacking 20 Authchip Count 1 Item Schematics ----------------- Lgt. Deuterium Engine | -9/Storage | Hacked Robot Schematics ------------------ None Fabricated ------------ Imp. Shock Absorption System | x2 | -7/Factory | Preloaded Repaired ---------- Nothing Alien Tech Used ----------------- None Achievements -------------- None Challenges ------------ None Game ------ Seed GravjetProcessingTerrabomb Manual? 0 Play Time 02:00:56 Cumulative 22.6 hours Start 2025.07.21 @ 11:06:45 End 2025.07.21 @ 16:33:42 Sessions 1 Manual Loads 0 Difficulty Explorer Special Mode None Game No. 26 Rogue 0 Adventurer 0 Explorer 26 Win Type - Total 0 Types 0/0/0/0/0/0/0/0/0/0 Lore% 16 Gallery% 27 Achievement% 21 Wizard Run 0 Options --------- Layout 1 ASCII 0 Keyboard 0 Movement Mouse Keybinds 0 Fullscreen 2 Font 16/SmallcapsGlow Map View 50x35 Zoom Use 0% Tactical HUD 0 Map Filters NONE Filters NONE Steam X RUN: 36bb0073-d18a-4aaf-bcdc-d6bb2b56603d